bitfinex-derivatives/quotes_BTCF0:USTF0_20250313
["timestamp","ask_amount","ask_price","bid_price","bid_amount"]
[1741858248194,0.4339313,83235.0,83234.0,0.09467949]
[1741858248500,0.4339313,83235.0,83234.0,0.00737949]
[1741858248883,0.44566429,83235.0,83234.0,0.00737949]
[1741858249397,0.44566429,83235.0,83232.0,0.00514739]
[1741858249398,0.1201542,83233.0,83232.0,0.00514739]
[1741858251000,0.1201542,83233.0,83232.0,0.12530309]
[1741858251190,0.1201542,83233.0,83232.0,0.35530309]
[1741858251391,0.2547542,83233.0,83232.0,0.35530309]
[1741858251695,0.2547542,83233.0,83232.0,0.44180309]
[1741858252585,0.4283542,83233.0,83232.0,0.44180309]
[1741858254598,0.43942052,83233.0,83232.0,0.44180309]
[1741858255598,0.4283542,83233.0,83232.0,0.44180309]
[1741858255993,0.2937542,83233.0,83232.0,0.44180309]
[1741858257904,0.2937542,83233.0,83232.0,0.52850309]
[1741858258801,0.2947542,83233.0,83232.0,0.52850309]
[1741858259607,0.30581552,83233.0,83232.0,0.52850309]
[1741858259796,0.30681552,83233.0,83232.0,0.52850309]
[1741858262003,0.18666132,83233.0,83232.0,0.52850309]
[1741858262303,0.3068261,83233.0,83232.0,0.52850309]
[1741858264496,0.0130719,83233.0,83232.0,0.52850309]
[1741858265004,0.1332261,83233.0,83232.0,0.52850309]
[1741858265901,0.2205261,83233.0,83232.0,0.52850309]
[1741858267200,0.3068261,83233.0,83232.0,0.52850309]
[1741858268202,0.30683978,83233.0,83232.0,0.52850309]
[1741858268605,0.2957542,83233.0,83232.0,0.52850309]
[1741858269607,0.002,83233.0,83232.0,0.52850309]
[1741858269803,0.0888,83245.0,83244.0,0.1201383]
[1741858270004,0.0888,83245.0,83244.0,0.3501383]
[1741858270507,0.1440421,83246.0,83245.0,0.1201369]
[1741858270702,0.1440421,83246.0,83245.0,0.3701369]
[1741858271801,0.2641776,83246.0,83245.0,0.3701369]
[1741858271997,0.1440421,83246.0,83245.0,0.3701369]
[1741858272412,0.0888,83248.0,83245.0,0.3701369]
[1741858272611,0.2089326,83248.0,83247.0,0.120134]
[1741858272813,0.0888,83248.0,83247.0,0.370134]
[1741858273010,0.00180245,83250.0,83247.0,0.25]
[1741858273312,0.00180245,83250.0,83249.0,0.1201311]
[1741858273506,0.12193215,83250.0,83249.0,0.3701311]
[1741858273708,0.20753215,83250.0,83249.0,0.3701311]
[1741858274505,0.21253215,83250.0,83249.0,0.3701311]
[1741858274703,0.21253215,83250.0,83249.0,0.38134847]
[1741858275706,0.21753215,83250.0,83249.0,0.38134847]
[1741858277009,0.30883215,83250.0,83249.0,0.38134847]
[1741858280713,0.18870245,83250.0,83249.0,0.38134847]
[1741858281316,0.30883215,83250.0,83249.0,0.38134847]
[1741858282415,0.18870245,83250.0,83249.0,0.47394847]
[1741858283117,0.30883215,83250.0,83249.0,0.47394847]
[1741858286320,0.0956,83250.0,83249.0,0.47394847]
[1741858287914,0.0956,83250.0,83249.0,0.55814847]
[1741858288110,0.0956,83250.0,83249.0,0.57814847]
[1741858288713,0.0956,83250.0,83249.0,0.55814847]
[1741858289719,0.0956,83250.0,83249.0,0.57814847]
[1741858290625,0.0956,83250.0,83249.0,0.55814847]
[1741858291213,0.0956,83250.0,83249.0,0.57814847]
[1741858291622,0.0956,83250.0,83249.0,0.55814847]
[1741858293428,0.2157297,83250.0,83249.0,0.55814847]
[1741858293817,0.1987239,83250.0,83249.0,0.55814847]
[1741858295312,0.3188536,83250.0,83249.0,0.46554847]
[1741858295513,0.1987239,83250.0,83245.0,0.4194]
[1741858295726,0.1201355,83246.0,83245.0,0.4194]
[1741858295915,0.1312594,83246.0,83245.0,0.7795369]
[1741858296319,0.1312594,83246.0,83245.0,0.3601369]
[1741858296517,0.3138594,83246.0,83245.0,0.3601369]
[1741858297229,0.1937239,83246.0,83245.0,0.3601369]
[1741858297428,0.3178594,83246.0,83245.0,0.3601369]
[1741858297628,0.32924482,83246.0,83245.0,0.3601369]
[1741858297831,0.32924482,83246.0,83245.0,0.4476369]
[1741858299124,0.33424482,83246.0,83245.0,0.4476369]
[1741858299924,0.33424482,83246.0,83245.0,0.3601369]
[1741858300825,0.33424482,83246.0,83245.0,0.24]
[1741858301430,0.33424482,83246.0,83245.0,0.3601369]
[1741858303032,0.3228594,83246.0,83245.0,0.3601369]
[1741858303236,0.3228594,83246.0,83245.0,0.24]
[1741858304931,0.3228594,83246.0,83245.0,0.3601369]
[1741858306644,0.3228594,83246.0,83245.0,0.4466369]
[1741858307935,0.3117355,83246.0,83245.0,0.3601369]
[1741858308144,0.3117355,83246.0,83245.0,0.24]
[1741858309035,0.20267021,83246.0,83241.0,6.8e-05]
[1741858309235,0.1201412,83242.0,83241.0,6.8e-05]
[1741858309426,0.120147,83238.0,83233.0,0.37351139]
[1741858309628,0.13121721,83238.0,83234.0,0.01143589]
[1741858309935,0.13121721,83238.0,83226.0,0.00527346]
[1741858309936,0.12016,83229.0,83226.0,0.00527346]
[1741858310136,0.25424,83229.0,83226.0,0.00527346]
[1741858310341,0.0600811,83228.0,83221.0,0.00554416]
[1741858310533,0.1201658,83225.0,83221.0,0.00554416]
[1741858310936,0.1201658,83225.0,83224.0,0.12570826]
[1741858311235,0.1201658,83225.0,83224.0,0.00554106]
[1741858311944,0.1221658,83225.0,83224.0,0.12570826]
[1741858312245,0.1251658,83225.0,83224.0,0.12570826]
[1741858312431,0.1251658,83225.0,83224.0,0.48000826]
[1741858312629,0.005,83225.0,83224.0,0.48000826]
[1741858312929,0.1251658,83225.0,83224.0,0.56510826]
[1741858314036,0.1231658,83225.0,83224.0,0.56510826]
[1741858314625,0.1201658,83225.0,83224.0,0.35984106]
[1741858314830,0.2885658,83225.0,83224.0,0.00554106]
[1741858315038,0.1201701,83222.0,83221.0,0.00554416]
[1741858315230,0.1312325,83222.0,83221.0,0.00554416]
[1741858315933,0.1312325,83222.0,83221.0,0.12571566]
[1741858316138,0.1312325,83222.0,83221.0,0.40571566]
[1741858316340,0.30344,83225.0,83221.0,0.54864416]
[1741858316536,0.2885701,83223.0,83222.0,0.1802544]
[1741858316742,0.2885701,83223.0,83222.0,0.4602544]
[1741858316939,0.2999149,83223.0,83222.0,0.6329544]
[1741858317332,0.1797448,83223.0,83222.0,0.6329544]
[1741858317637,0.2999135,83223.0,83222.0,0.6329544]
[1741858317838,0.2999135,83223.0,83222.0,0.5127843]
[1741858318137,0.2885687,83223.0,83222.0,0.5127843]
[1741858318341,0.2905687,83223.0,83222.0,0.5127843]
[1741858318642,0.2925687,83223.0,83222.0,0.5127843]
[1741858320129,0.30363994,83223.0,83222.0,0.3673]
[1741858320737,0.30363994,83223.0,83222.0,0.28]
[1741858321934,0.30363994,83223.0,83222.0,0.3677]
[1741858322749,0.30363994,83223.0,83222.0,0.4878701]
[1741858322938,0.30363994,83223.0,83222.0,0.5737701]
[1741858323138,0.30363994,83223.0,83222.0,0.4878701]
[1741858323942,0.31498039,83223.0,83222.0,0.4878701]
[1741858324444,0.31498039,83223.0,83222.0,0.2078701]
[1741858325241,0.30363994,83223.0,83222.0,0.2964701]
[1741858325640,0.2925687,83223.0,83222.0,0.2964701]
[1741858325946,0.2078687,83223.0,83222.0,0.3464701]
[1741858329139,0.21906784,83223.0,83222.0,0.2263]
[1741858329351,0.21906784,83223.0,83222.0,0.3464701]
[1741858329752,0.2951687,83223.0,83222.0,0.3464701]
[1741858330152,0.3063759,83223.0,83222.0,0.3464701]
[1741858331255,0.3063759,83223.0,83222.0,0.2263]
[1741858331448,0.3063759,83223.0,83222.0,0.05]
[1741858331750,0.1201701,83222.0,83221.0,0.00554416]
[1741858331954,0.2238773,83222.0,83221.0,0.00554416]
[1741858332152,0.3952773,83222.0,83221.0,0.00554416]
[1741858332353,0.40661886,83222.0,83221.0,0.00554416]
[1741858332948,0.31411886,83222.0,83221.0,0.12571566]
[1741858333145,0.3027773,83222.0,83221.0,0.12571566]
[1741858333347,0.3027773,83222.0,83221.0,0.00554416]
[1741858333552,0.3037773,83222.0,83221.0,0.00554416]
[1741858334543,0.3057773,83222.0,83221.0,0.00554416]
[1741858334947,0.2945701,83222.0,83221.0,0.00554416]
[1741858335154,0.30575942,83222.0,83221.0,0.00554416]
[1741858336045,0.2945701,83222.0,83221.0,0.00554416]
[1741858341049,0.2945701,83222.0,83221.0,0.12571566]
[1741858341254,0.53231673,83222.0,83221.0,0.36571566]
[1741858341456,0.44881673,83222.0,83221.0,0.36571566]
[1741858341851,0.53431673,83222.0,83221.0,0.53921566]
[1741858342250,0.53431673,83222.0,83221.0,0.41904416]
[1741858342449,0.53431673,83222.0,83221.0,0.53921566]
[1741858344862,0.2965701,83222.0,83221.0,0.53921566]
[1741858361359,0.17932043,83225.0,83221.0,0.41904416]
[1741858361565,0.17932043,83225.0,83224.0,0.1201672]
[1741858361769,0.34314488,83248.0,83224.0,0.6794]
[1741858361966,0.28307858,83248.0,83236.0,0.1201499]
[1741858362270,0.30768861,83243.0,83236.0,0.4001499]
[1741858362470,0.0847,83242.0,83236.0,0.4001499]
[1741858362771,0.0831,83238.0,83236.0,0.4001499]
[1741858362967,0.0831,83238.0,83236.0,0.5745499]
[1741858363475,0.00180277,83239.0,83236.0,0.58641022]
[1741858363675,0.120148,83238.0,83236.0,0.58641022]
[1741858363870,0.0832802,83237.0,83236.0,0.58641022]
[1741858364174,0.0852802,83237.0,83236.0,0.58641022]
[1741858364563,0.0872802,83237.0,83236.0,0.58641022]
[1741858371175,0.0041802,83237.0,83236.0,0.58641022]
[1741858371379,0.2866279,83252.0,83251.0,0.1201282]
[1741858371581,0.29776068,83252.0,83251.0,0.3501282]
[1741858372180,0.29776068,83252.0,83251.0,0.5174282]
[1741858372364,0.0817,83252.0,83251.0,0.5174282]
[1741858372568,0.10779047,83257.0,83256.0,0.120121]
[1741858372778,0.10779047,83257.0,83256.0,0.360121]
[1741858373281,0.10779047,83259.0,83256.0,0.24]
[1741858373482,0.1201185,83258.0,83257.0,0.2052181]
[1741858373778,0.1201185,83258.0,83257.0,0.28]
[1741858373982,0.2039185,83258.0,83257.0,0.4001196]
[1741858374172,0.21542784,83258.0,83257.0,0.4001196]
[1741858374669,0.21942784,83258.0,83257.0,0.4001196]
[1741858375079,0.21942784,83258.0,83257.0,0.4889196]
[1741858375675,0.30982784,83258.0,83257.0,0.4889196]
[1741858376979,0.30982784,83258.0,83257.0,0.5778196]
[1741858377983,0.30982784,83258.0,83257.0,0.4001196]
[1741858380886,0.30982784,83258.0,83257.0,0.4868196]
[1741858381470,0.18970934,83258.0,83257.0,0.5721196]
[1741858382078,0.008,83258.0,83257.0,0.5721196]
[1741858387178,0.092,83258.0,83257.0,0.7055196]
[1741858387580,0.008,83258.0,83257.0,0.7055196]
[1741858390981,0.0001802,83260.0,83257.0,1.0155196]
[1741858391181,0.0001802,83260.0,83259.0,0.1201167]
[1741858391380,0.1200937,83275.0,83274.0,0.060046]
[1741858391582,0.19159648,83275.0,83274.0,0.300046]
[1741858391786,0.29097115,83275.0,83274.0,0.300046]
[1741858391988,0.29097115,83275.0,83274.0,0.388846]
[1741858392275,0.11082955,83275.0,83274.0,0.148846]
[1741858392475,0.11082955,83275.0,83274.0,0.218846]
[1741858392675,0.23092315,83275.0,83274.0,0.306346]
[1741858392879,0.21946827,83275.0,83274.0,0.306346]
[1741858393076,0.30146827,83275.0,83274.0,0.306346]
[1741858393276,0.31290252,83275.0,83274.0,0.07]
[1741858393790,0.31290252,83275.0,83274.0,0.1900951]
[1741858393985,0.31890252,83275.0,83274.0,0.1900951]
[1741858394186,0.31890252,83275.0,83274.0,0.20199519]
[1741858394386,0.31890252,83275.0,83274.0,0.07]
[1741858394583,0.0600497,83272.0,83269.0,0.2780998]
[1741858394783,0.1201008,83270.0,83269.0,0.5881502]
[1741858394985,0.13153505,83270.0,83269.0,0.59960048]
[1741858395291,0.30160972,83270.0,83269.0,0.59960048]
[1741858396294,0.30364113,83270.0,83269.0,0.59960048]
[1741858396475,0.30764113,83270.0,83269.0,0.59960048]
[1741858403787,0.18754033,83270.0,83269.0,0.59960048]
[1741858407781,0.18753511,83270.0,83269.0,0.59960048]
[1741858410391,0.30763591,83270.0,83269.0,0.59960048]
[1741858411089,0.30920553,83270.0,83269.0,0.59960048]
[1741858412091,0.30920553,83270.0,83269.0,0.26145028]
[1741858412287,0.1201052,83267.0,83266.0,0.1202855]
[1741858412489,0.13156564,83267.0,83266.0,0.1202855]
[1741858412694,0.16186025,83267.0,83266.0,0.3802855]
[1741858412993,0.04332467,83267.0,83266.0,0.3802855]
[1741858413682,0.04332467,83267.0,83266.0,0.5313855]
[1741858413683,0.04732467,83267.0,83266.0,0.5313855]
[1741858413887,0.05132467,83267.0,83266.0,0.5313855]
[1741858414086,0.03260473,83267.0,83266.0,0.5313855]
[1741858414300,0.14372062,83277.0,83276.0,0.1200922]
[1741858414596,0.14372062,83277.0,83276.0,0.5132122]
[1741858415692,0.14872062,83277.0,83276.0,0.6553122]
[1741858416491,0.15172062,83277.0,83276.0,0.6553122]
[1741858417198,0.008,83277.0,83276.0,0.6553122]
[1741858418095,0.0001802,83283.0,83282.0,0.1200835]
[1741858418394,0.28307858,83313.0,83297.0,0.1200619]
[1741858418395,0.17711009,83298.0,83297.0,0.1200619]
[1741858418606,0.17711009,83298.0,83297.0,1.0025419]
[1741858418801,0.17711009,83298.0,83297.0,0.9725419]
[1741858418984,0.17711009,83298.0,83297.0,0.9925419]
[1741858419189,0.17711009,83298.0,83297.0,1.1373419]
[1741858419398,0.17711009,83298.0,83297.0,1.21739352]
[1741858419805,0.17711009,83298.0,83297.0,1.23739352]
[1741858419988,0.17711009,83298.0,83297.0,1.27739352]
[1741858420691,0.17811009,83298.0,83297.0,1.27739352]
[1741858420889,0.00018008,83306.0,83297.0,1.15733162]
[1741858421092,0.15598008,83306.0,83305.0,0.1200504]
[1741858421401,0.15598008,83306.0,83305.0,0.39152081]
[1741858421896,0.15598008,83306.0,83305.0,0.53982081]
[1741858422100,0.27602898,83306.0,83305.0,0.53982081]
[1741858422595,0.27602898,83306.0,83305.0,0.39152081]
[1741858423692,0.27602898,83306.0,83305.0,0.27147041]
[1741858423998,0.27602898,83306.0,83305.0,0.39152081]
[1741858424799,0.27602898,83306.0,83305.0,0.13152081]
[1741858425097,0.1200605,83298.0,83296.0,0.1200629]
[1741858425293,0.1200605,83298.0,83297.0,0.5394619]
[1741858425899,0.1477,83298.0,83297.0,0.7794619]
[1741858426199,0.1477,83298.0,83297.0,0.9278619]
[1741858428211,0.2677605,83298.0,83297.0,0.3600619]
[1741858429802,0.1477,83298.0,83297.0,0.3600619]
[1741858429999,0.2677605,83298.0,83297.0,0.3600619]
[1741858430594,0.1477,83298.0,83297.0,0.3600619]
[1741858430908,0.1477,83298.0,83297.0,0.5065619]
[1741858432099,0.0234594,83304.0,83303.0,0.1200532]
[1741858432300,0.00018008,83306.0,83304.0,0.1965518]
[1741858432500,0.00018008,83306.0,83305.0,0.1940504]
[1741858432706,0.00018008,83306.0,83305.0,0.4940504]
[1741858432903,0.00018008,83306.0,83305.0,0.5505504]
[1741858434306,0.18972898,83306.0,83305.0,0.5505504]
[1741858434611,0.06968008,83306.0,83305.0,0.5505504]
[1741858435001,0.18972898,83306.0,83305.0,0.5505504]
[1741858435204,0.26562898,83306.0,83305.0,0.5505504]
[1741858435513,0.14558008,83306.0,83305.0,0.5505504]
[1741858435913,0.21608008,83306.0,83305.0,0.5505504]
[1741858438014,0.33612898,83306.0,83305.0,0.4765504]
[1741858438398,0.33612898,83306.0,83305.0,0.4000504]
[1741858439106,0.33612898,83306.0,83305.0,0.4696504]
[1741858439307,0.33612898,83306.0,83305.0,0.28]
[1741858439512,0.33612898,83306.0,83305.0,0.1200504]
[1741858439711,0.33612898,83306.0,83302.0,0.0600269]
[1741858439712,0.21608008,83306.0,83302.0,0.0600269]
[1741858440013,0.1200532,83303.0,83302.0,0.0600269]
[1741858440610,0.2660532,83303.0,83302.0,0.0600269]
[1741858440825,0.146,83303.0,83302.0,0.1400269]
[1741858441406,0.146,83303.0,83302.0,0.2929269]
[1741858442017,0.2660532,83303.0,83302.0,0.2929269]
[1741858442717,0.146,83303.0,83302.0,0.2929269]
[1741858442899,0.2660532,83303.0,83302.0,0.2929269]
[1741858443510,0.146,83303.0,83302.0,0.2929269]
[1741858445008,0.00018008,83306.0,83305.0,0.1200504]
[1741858445208,0.2171,83317.0,83316.0,0.1200345]
[1741858445403,0.3371331,83317.0,83316.0,0.3500345]
[1741858445711,0.3371331,83317.0,83316.0,0.36158956]
[1741858446214,0.147,83317.0,83316.0,0.36158956]
[1741858446512,0.147,83317.0,83316.0,0.43718956]
[1741858447014,0.2670331,83317.0,83316.0,0.36158956]
[1741858448311,0.147,83317.0,83316.0,0.3500345]
[1741858448518,0.1800597,83314.0,83313.0,0.1200375]
[1741858449310,0.1800597,83314.0,83313.0,0.13197811]
[1741858449510,0.1800597,83314.0,83313.0,0.1200375]
[1741858449717,0.0600194,83314.0,83313.0,0.3900375]
[1741858450213,0.0600179,83316.0,83315.0,0.120036]
[1741858450412,0.2053179,83316.0,83315.0,0.370036]
[1741858450623,0.1200374,83314.0,83313.0,0.0600187]
[1741858451711,0.2053179,83316.0,83313.0,0.3300187]
[1741858451911,0.1453,83316.0,83315.0,0.120036]
[1741858452116,0.2653345,83316.0,83315.0,0.120036]
[1741858452513,0.1453,83316.0,83315.0,0.120036]
[1741858452712,0.1453,83316.0,83315.0,0.400036]
[1741858452713,0.2653345,83316.0,83315.0,0.400036]
[1741858452913,0.2653345,83316.0,83315.0,0.475536]
[1741858453622,0.2653345,83316.0,83315.0,0.195536]
[1741858453921,0.2653345,83316.0,83315.0,0.120036]
[1741858455124,0.1200374,83314.0,83313.0,0.1800554]
[1741858457125,0.1453,83316.0,83307.0,0.0600232]
[1741858457429,0.1200446,83309.0,83307.0,0.1200468]
[1741858457729,0.1200446,83309.0,83308.0,0.12022608]
[1741858458424,0.2717446,83309.0,83308.0,0.00018008]
[1741858458631,0.2717446,83309.0,83308.0,0.12022608]
[1741858462325,0.2717446,83309.0,83308.0,0.00018008]
[1741858462528,0.1200662,83294.0,83291.0,0.0600345]
[1741858462728,0.1200662,83294.0,83293.0,0.33258438]
[1741858463326,0.2728662,83294.0,83293.0,0.40918438]
[1741858463639,0.2728662,83294.0,83293.0,0.21251668]
[1741858463930,0.0763,83294.0,83293.0,0.33258438]
[1741858464328,0.0763,83294.0,83293.0,0.40918438]
[1741858464522,0.13286008,83302.0,83301.0,0.1200561]
[1741858464727,0.25291478,83302.0,83301.0,0.1200561]
[1741858465633,0.32571478,83302.0,83301.0,0.1966561]
[1741858466722,0.1200677,83293.0,83292.0,0.25585856]
[1741858466928,0.1200677,83293.0,83292.0,0.2401303]
[1741858467326,0.1497,83294.0,83292.0,0.120065]
[1741858467524,0.0743,83294.0,83293.0,0.1939677]
[1741858467925,0.0743,83294.0,83293.0,0.2646677]
[1741858468435,0.1943662,83294.0,83293.0,0.2646677]
[1741858468635,0.0743,83294.0,83293.0,0.2646677]
[1741858468835,0.0600299,83299.0,83296.0,0.0600309]
[1741858469033,0.1800899,83299.0,83298.0,0.1200605]
[1741858469530,0.2554865,83301.0,83300.0,0.1200576]
[1741858469732,0.00018008,83302.0,83301.0,0.1200561]
[1741858469933,0.13268,83326.0,83310.0,0.1200432]
[1741858470122,0.17959011,83311.0,83310.0,0.3700432]
[1741858471335,0.29963181,83311.0,83310.0,0.3700432]
[1741858473138,0.17959011,83311.0,83310.0,0.38168662]
[1741858473439,0.1980271,83322.0,83318.0,0.1200316]
[1741858473642,0.077,83321.0,83318.0,0.1200316]
[1741858473937,0.1970277,83321.0,83318.0,0.1200316]
[1741858474135,0.077,83321.0,83318.0,0.3508316]
[1741858474338,0.12021028,83319.0,83318.0,0.3508316]
[1741858474833,0.00018008,83319.0,83318.0,0.3508316]
[1741858475240,0.12021028,83319.0,83318.0,0.3508316]
[1741858476439,0.00018008,83319.0,83318.0,0.3508316]
[1741858476738,0.12021028,83319.0,83318.0,0.3508316]
[1741858477532,0.00018008,83319.0,83318.0,0.3508316]
[1741858477837,0.12021028,83319.0,83318.0,0.3508316]
[1741858479433,0.00018008,83319.0,83318.0,0.3508316]
[1741858479632,0.00018008,83319.0,83318.0,0.5708316]
[1741858480034,0.07188008,83319.0,83318.0,0.5708316]
[1741858480433,0.19191028,83319.0,83318.0,0.5708316]
[1741858480638,0.07188008,83319.0,83318.0,0.3508316]
[1741858480836,0.078,83323.0,83318.0,0.4808]
[1741858481035,0.12181866,83328.0,83327.0,0.1200187]
[1741858481233,0.19931866,83328.0,83327.0,0.1200187]
[1741858481437,0.19931866,83328.0,83327.0,0.3343187]
[1741858481832,0.07930076,83328.0,83327.0,0.3343187]
[1741858482033,0.1436245,83329.0,83327.0,0.2143]
[1741858482237,0.00018008,83336.0,83327.0,0.4643]
[1741858482442,0.00018008,83336.0,83334.0,0.1200086]
[1741858482646,0.25059011,83335.0,83334.0,0.1200086]
[1741858482945,0.071,83335.0,83334.0,0.1200086]
[1741858483337,0.071,83335.0,83334.0,0.2663086]
[1741858483643,0.17977019,83336.0,83335.0,0.1200072]
[1741858483838,0.17977019,83336.0,83335.0,0.5063072]
[1741858486041,0.21496633,83342.0,83341.0,0.1199985]
[1741858486239,0.21496633,83342.0,83341.0,0.3599985]
[1741858487349,0.21496633,83342.0,83341.0,0.5060985]
[1741858487833,0.21496633,83342.0,83341.0,0.5360985]
[1741858488237,0.00012009,83350.0,83341.0,0.4161]
[1741858488434,0.00012009,83350.0,83349.0,0.119987]
[1741858488637,0.00012009,83350.0,83349.0,0.359987]
[1741858489433,0.00180033,83352.0,83351.0,0.1199841]
[1741858489637,0.00180033,83352.0,83351.0,0.3599841]
[1741858489839,0.12178303,83352.0,83351.0,0.3599841]
[1741858490645,0.26908303,83352.0,83351.0,0.3599841]
[1741858492441,0.2672827,83352.0,83351.0,0.3599841]
[1741858493148,0.0599814,83366.0,83360.0,0.1199697]
[1741858493345,0.00179988,83369.0,83361.0,0.1931697]
[1741858493664,0.00179988,83369.0,83361.0,0.3232]
[1741858493948,0.1799354,83375.0,83374.0,0.1199441]
[1741858494646,0.1799354,83375.0,83371.0,0.0599774]
[1741858494647,0.2127774,83375.0,83373.0,0.1458]
[1741858494942,0.119951,83374.0,83373.0,0.265751]
[1741858495342,0.272751,83374.0,83373.0,0.265751]
[1741858495553,0.1528,83374.0,83364.0,0.059982]
[1741858495751,0.1528,83374.0,83360.0,0.13248]
[1741858495950,0.1199697,83361.0,83360.0,0.1199685]
[1741858496743,0.2736697,83361.0,83360.0,0.1199685]
[1741858496946,0.2736697,83361.0,83360.0,0.1941685]
[1741858497750,0.2736697,83361.0,83360.0,0.1199685]
[1741858497942,0.2736697,83361.0,83360.0,0.0599836]
[1741858498947,0.2736697,83361.0,83357.0,0.00017997]
[1741858499154,0.2736697,83361.0,83357.0,0.13436687]
[1741858499155,0.119974,83358.0,83357.0,0.13436687]
[1741858501051,0.119974,83358.0,83357.0,0.00017997]
[1741858501249,0.1199942,83344.0,83343.0,0.12179417]
[1741858501449,0.0599963,83346.0,83345.0,0.1199928]
[1741858502252,0.0599963,83346.0,83345.0,0.1904928]
[1741858502643,0.1199942,83344.0,83343.0,0.01377628]
[1741858502844,0.1200028,83338.0,83337.0,0.18017727]
[1741858503038,0.1200028,83338.0,83337.0,0.24017737]
[1741858503748,0.1200028,83338.0,83337.0,0.12018017]
[1741858503946,0.1200028,83338.0,83337.0,0.00017997]
[1741858504354,0.1358006,83340.0,83328.0,0.1200167]
[1741858504655,0.1200158,83329.0,83328.0,0.3600449]
[1741858504948,0.1200158,83329.0,83328.0,0.4332449]
[1741858508446,0.0758,83330.0,83329.0,0.1200158]
[1741858508447,0.1958148,83330.0,83329.0,0.1200158]
[1741858508646,0.1958148,83330.0,83329.0,0.2678158]
[1741858508850,0.0758,83330.0,83329.0,0.2678158]
[1741858509156,0.1958144,83330.0,83329.0,0.1478]
[1741858509351,0.1958144,83330.0,83329.0,0.2678158]
[1741858515660,0.1958144,83330.0,83329.0,0.3400158]
[1741858516745,0.1958144,83330.0,83329.0,0.1478]
[1741858516947,0.1958144,83330.0,83320.0,0.00198017]
[1741858516948,0.1200273,83321.0,83320.0,0.00198017]
[1741858517145,0.1200273,83321.0,83320.0,0.03198017]
[1741858517353,0.1200273,83321.0,83320.0,0.00198017]
[1741858517563,0.1965273,83321.0,83320.0,0.00198017]
[1741858518063,0.2691273,83321.0,83320.0,0.00198017]
[1741858518564,0.28142,83321.0,83311.0,0.0729]
[1741858518765,0.120046,83308.0,83307.0,0.0716]
[1741858518960,0.120046,83308.0,83307.0,0.2686475]
[1741858519760,0.266646,83308.0,83307.0,0.2686475]
[1741858520359,0.262646,83308.0,83307.0,0.2686475]
[1741858521268,0.262646,83308.0,83307.0,0.2736475]
[1741858521666,0.262646,83308.0,83307.0,0.2786475]
[1741858522259,0.262646,83308.0,83307.0,0.1300475]
[1741858522463,0.262646,83308.0,83307.0,0.01]
[1741858522862,0.262646,83308.0,83307.0,0.0823]
[1741858523767,0.1200576,83300.0,83291.0,0.00915632]
[1741858523969,0.1200576,83300.0,83297.0,0.0711]
[1741858524268,0.2670576,83300.0,83298.0,0.0745]
[1741858524655,0.2650576,83300.0,83298.0,0.0745]
[1741858525058,0.1200705,83291.0,83290.0,0.00180085]
[1741858525262,0.1160705,83291.0,83290.0,0.12187285]
[1741858525668,0.0600304,83298.0,83294.0,0.0600327]
[1741858525864,0.1912619,83297.0,83296.0,0.1200633]
[1741858526062,0.1912619,83297.0,83296.0,0.1945633]
[1741858526267,0.1912619,83297.0,83296.0,0.2700633]
[1741858526973,0.001,83297.0,83296.0,0.3300942]
[1741858527465,0.001,83297.0,83296.0,0.3400942]
[1741858527972,0.002,83297.0,83296.0,0.3400942]
[1741858528475,0.001,83297.0,83296.0,0.3400942]
[1741858528679,0.002,83297.0,83296.0,0.3400942]
[1741858529469,0.120055,83302.0,83301.0,0.1200561]
[1741858529868,0.13404106,83317.0,83304.0,0.1200518]
[1741858530172,7e-08,83305.0,83304.0,0.8516918]
[1741858530374,0.060006,83332.0,83323.0,0.1200244]
[1741858530584,0.0734,83335.0,83323.0,0.1300244]
[1741858530781,0.0600087,83328.0,83323.0,0.1300244]
[1741858530968,0.0721,83334.0,83323.0,0.1300244]
[1741858531176,0.29908602,83324.0,83323.0,0.2068244]
[1741858533084,0.120023,83324.0,83323.0,0.2068244]
[1741858533477,0.120023,83324.0,83323.0,0.2794244]
[1741858533673,0.0600107,83326.0,83325.0,0.1200216]
[1741858533878,0.1953183,83328.0,83327.0,0.1200187]
[1741858534293,0.2696183,83328.0,83327.0,0.1200187]
[1741858536284,0.1496,83328.0,83327.0,0.1200187]
[1741858536484,0.0743,83328.0,83327.0,0.1200187]
[1741858536679,0.00018007,83332.0,83330.0,0.1200129]
[1741858536881,0.12019297,83332.0,83331.0,0.2720129]
[1741858537186,0.19299297,83332.0,83331.0,0.2720129]
[1741858537995,0.27129297,83332.0,83331.0,0.2720129]
[1741858538284,0.27129297,83332.0,83331.0,0.152]
[1741858538786,0.27229297,83332.0,83331.0,0.0762]
[1741858539176,0.1200158,83329.0,83328.0,0.0769]
[1741858539486,0.1200158,83329.0,83328.0,0.1969172]
[1741858540796,0.1210158,83329.0,83328.0,0.1969172]
[1741858540990,0.1210158,83329.0,83328.0,0.0769]
[1741858541289,0.1210158,83329.0,83328.0,0.1969172]
[1741858541484,0.1210158,83329.0,83328.0,0.2693172]
[1741858541683,0.1220158,83329.0,83328.0,0.2693172]
[1741858542085,0.1220158,83329.0,83328.0,0.1493]
[1741858545497,0.2685158,83329.0,83328.0,0.1493]
[1741858545792,0.2685158,83329.0,83328.0,0.0724]
[1741858545989,0.2685158,83329.0,83322.0,0.0600123]
[1741858545990,0.1200216,83325.0,83324.0,0.0748]
[1741858546199,0.1485,83329.0,83318.0,0.1200305]
[1741858546200,0.0600119,83324.0,83318.0,0.1200305]
[1741858546379,0.1200316,83319.0,83318.0,0.3000737]
[1741858546583,0.1200316,83318.0,83317.0,0.0747]
[1741858546789,0.2651316,83318.0,83317.0,0.1947331]
[1741858547384,0.2631316,83318.0,83317.0,0.1947331]
[1741858547989,0.2631316,83318.0,83317.0,0.1967331]
[1741858548194,0.27492311,83318.0,83317.0,0.1967331]
[1741858548698,0.20382311,83318.0,83317.0,0.1967331]
[1741858548894,0.1920316,83318.0,83317.0,0.1967331]
[1741858550797,0.59670696,86242.0,83317.0,0.0767]
[1741858550990,0.0736,83325.0,83323.0,0.120023]
[1741858551191,0.0736,83325.0,83324.0,0.191523]
[1741858551497,0.1936216,83325.0,83324.0,0.191523]
[1741858551898,0.2711216,83325.0,83324.0,0.191523]
[1741858553093,0.2711216,83325.0,83324.0,0.0715]
[1741858553596,0.2711216,83325.0,83324.0,0.191523]
[1741858553895,0.2711216,83325.0,83324.0,0.192523]
[1741858559303,0.2711216,83325.0,83324.0,0.0725]
[1741858560506,0.2711216,83325.0,83324.0,0.001]
[1741858560699,0.1511,83325.0,83320.0,0.0741]
[1741858560895,0.1200345,83316.0,83315.0,0.00018007]
[1741858561299,0.1200475,83307.0,83304.0,0.1817164]
[1741858561493,0.1200475,83307.0,83305.0,0.1200498]
[1741858561799,0.1200475,83307.0,83306.0,0.33256558]
[1741858561989,0.1200475,83307.0,83306.0,0.34466022]